Cogmind - Beta 13 @@@ ROGUE MODE // 2024.06.05 @ 02:06:32 Player: Some Pennies Result: Destroyed by G-47 Trooper with Particle Gun Performance ------------- Evolutions (0) 0 Regions Visited (2) 400 Robots Destroyed (29) 145 Value Destroyed (553) 553 Prototype IDs (0) 0 Alien Tech Used (0) 0 Bonus (0) 0 TOTAL SCORE: 1098 Bonus ------- None Cogmind --------- Core Integrity 0/250 Matter 296/300 Energy 160/160 System Corruption 4% Temperature Cool (78) Movement Treading (320) Ox2 Location -10/Mines Parts ------- > --- POWER (1) -------- Light Nuclear Core > --- PROPULSION (2) --- Light Treads > --- UTILITY (2) ------ High-capacity Storage Unit > --- WEAPON (2) ------- Small Laser Light Assault Rifle > --- INVENTORY (20) --- Ion Engine Improved Heat Sink Terrain Scanner Improved Terrain Scanner Transport Network Coupler ECM Suite Datajack Mining Laser Peak State ------------ > --- POWER ------------ Ion Engine > --- PROPULSION ------- Light Treads Compact Wheel > --- UTILITY ---------- Small Storage Unit Improved Terrain Scanner > --- WEAPON ----------- EM Pulse Gun Small Laser > --- INVENTORY -------- Light Treads Small Laser [Rating: 9] Favorites ----------- Power Ion Engine Engine Ion Engine Power Core Light Nuclear Core Propulsion Light Treads Treads Light Treads Wheel Compact Wheel Utility High-capacity Storage Unit Device Seismic Detector Storage High-capacity Storage Unit Weapon Small Laser Energy Gun Small Laser Ballistic Gun Light Assault Rifle Build | -11 -10 -10 ------- Run | Yrd Mat Min Slots Evolved . | . . . Power . | . . . Propulsion . | . . . Utility . | . . . Weapon . | . . . Parts Attached 23 | 8 8 7 Power 3 | 1 1 1 Engine 2 | 1 1 . Core 1 | . . 1 Reactor . | . . . Propulsion 7 | 2 2 3 Treads 6 | 1 2 3 Leg . | . . . Wheel 1 | 1 . . Hover . | . . . Flight . | . . . Utility 6 | 3 2 1 Device 4 | 2 1 1 Storage 2 | 1 1 . Processor . | . . . Hackware . | . . . Protection . | . . . Artifact . | . . . Weapon 7 | 2 3 2 Energy Gun 5 | 2 2 1 Energy Cannon . | . . . Ballistic Gun 2 | . 1 1 Ballistic Cannon . | . . . Launcher . | . . . Special Weapon . | . . . Impact Weapon . | . . . Slashing Weapon . | . . . Piercing Weapon . | . . . Special Melee Weapon . | . . . Unidentified Prototypes . | . . . Corrupted Parts 2 | . . 2 System Corruption 4 | . . 4 Parts Lost 11 | . 4 7 Power 2 | . 1 1 Propulsion 4 | . 1 3 Utility 1 | . . 1 Weapon 4 | . 2 2 Highest Loss Streak 5 | . 2 5 To Critical Strikes . | . . . Average Slot Usage (%) 85 | . 85 85 Engine 9 | . 14 4 Core 3 | . . 7 Treads 26 | . 25 27 Wheel 1 | . 2 . Device 2 | . 1 4 Storage 14 | . 14 14 Energy Gun 18 | . 22 13 Ballistic Gun 8 | . 5 12 Naked Turns . | . . . Heaviest Build 49 | 14 49 48 Greatest Support 40 | 16 40 40 Greatest Overweight (x) 15 | . 3 15 Average Overweight (x) 1 | . 1 1 Largest Inventory Capacity 20 | 8 20 20 Average Capacity 18 | 6 19 20 Most Carried 12 | 4 12 11 Average Carried 8 | 2 9 8 Final Capacity 20 | 8 20 20 Final Carried 11 | 3 11 8 Class Distribution -------------------- 85% | Mutant 14% | Scavenger-Mutant Dominant Class ---------------- Mutant | -10/Materials Mutant | -10/Mines Resources | -11 -10 -10 ----------- Run | Yrd Mat Min Matter Collected 418 | 280 67 71 Remotely . | . . . Salvage Created 1014 | 196 686 132 Parts 64 | 11 45 8 Haulers Intercepted 1 | . 1 . Recyclers Shooed 2 | . 2 . Parts Field Recycled . | . . . Retrieved Matter . | . . . Parts Self-Destructed . | . . . Prevented . | . . . Kills | -11 -10 -10 ------- Run | Yrd Mat Min Combat Hostiles Destroyed 14 | . 11 3 Guns 13 | . 10 3 AOE 1 | . 1 . Classes Destroyed 9 | 3 6 . Worker 3 | 1 2 . Builder 2 | . 2 . Tunneler 4 | 4 . . Hauler 1 | . 1 . Recycler 2 | 1 1 . Mechanic 1 | . 1 . Watcher 2 | . 2 . Swarmer 3 | . 3 . Grunt 11 | . 8 3 Best Kill Streak 6 | 3 6 1 Combat Bots Only 4 | . 4 1 Max Kills in Single Turn 3 | 2 3 1 Gunslinging 1 | . 1 . Exploded 1 | . 1 . Melee . | . . . Uniques/NPCs Destroyed . | . . . Combat | -11 -10 -10 -------- Run | Yrd Mat Min Hostile Shots Fired 151 | . 64 87 Missed 47 | . 22 25 Damage Taken 1390 | 31 473 886 Core 259 | . 46 213 Absorbed by Shields . | . . . Core Remaining (%) 100 | 100 . . Volleys Fired 86 | 13 55 18 Largest 2 | 2 2 2 Hottest 80 | 80 80 60 Shots Fired 169 | 26 106 37 Gun 169 | 26 106 37 Cannon . | . . . Launcher . | . . . Special . | . . . Kinetic 25 | . 7 18 Thermal 86 | 13 54 19 Explosive . | . . . Electromagnetic 58 | 13 45 . Robot Hit Streak 8 | 6 8 8 Robot Miss Streak 5 | 1 5 5 Penetration Max . | . . . Secondary Targets 5 | . 4 1 Max Gunslinging Chain 1 | . 1 1 Shots Hit Robots 96 | 19 54 23 Core Hits 52 | 7 33 12 Critical Kills . | . . . Critical Parts Destroyed 1 | . . 1 Critical Strikes 2 | 1 . 1 Destroy 1 | . . 1 Corrupt 1 | 1 . . Melee Attacks . | . . . Impact . | . . . Slashing . | . . . Piercing . | . . . Sneak Attacks . | . . . Combat Hostiles . | . . . Follow-up Attacks . | . . . Damage Inflicted 1404 | 270 909 225 Guns 1185 | 236 724 225 Cannons . | . . . Explosions 219 | 34 185 . Melee . | . . . Ramming . | . . . Kinetic 120 | . 26 94 Thermal 786 | 159 496 131 Explosive . | . . . Electromagnetic 498 | 111 387 . Impact . | . . . Slashing . | . . . Piercing . | . . . Highest Corruption 4 | . . 4 Average Corruption 3 | . . 3 Corruption Purged . | . . . Corruption Blocked . | . . . Effects 9 | . . 9 Message Errors 3 | . . 3 Heat Flow Errors 1 | . . 1 Data Loss (minor) 3 | . . 3 Misfires 1 | . . 1 Alerts 1 | . . 1 Overload Shots . | . . . Overflow Damage 8 | . 8 . Projectiles . | . . . Explosions 8 | . 8 . Melee . | . . . Knockbacks . | . . . Impact . | . . . Kinetic . | . . . Secondary . | . . . Self-Inflicted Damage 31 | 31 . . Shots 1 | 1 . . Rammed . | . . . Targets Rammed . | . . . Kicked . | . . . Crushed . | . . . Highest Temperature 261 | 46 261 193 Average Temperature 56 | 13 57 74 Received Heat Transfer 729 | . 198 531 Siege Activations . | . . . Robots Corrupted . | . . . Combat Hostiles . | . . . Parts Fried 2 | . 2 . Impact Corruptions . | . . . Robots Melted . | . . . Combat Hostiles . | . . . Parts Melted 3 | . 3 . Heat Transferred 1550 | 275 975 300 Parts Sabotaged . | . . . Parts Stolen . | . . . Parts Stripped . | . . . Power Chain Reactions 3 | 1 2 . Alert | -11 -10 -10 ------- Run | Yrd Mat Min Peak Influence 267 | 30 267 79 Initial 79 | . 19 79 Average 90 | 14 156 38 Maximum Alert Level 1 | . 1 . Low Security (%) 87 | 100 73 100 Level 1 12 | . 26 . Level 2 . | . . . Level 3 . | . . . Level 4 . | . . . Level 5 . | . . . High Security . | . . . Max Security . | . . . Squads Dispatched 2 | . 2 . Investigation . | . . . Extermination . | . . . Reinforcement 2 | . 2 . Assault . | . . . Garrison . | . . . Intercept . | . . . Searches Triggered . | . . . Construction Impeded . | . . . Haulers Reinforced . | . . . Active Scanning Responses . | . . . Cargo Convoy Interrupts . | . . . Stealth | -11 -10 -10 --------- Run | Yrd Mat Min Distress Signals . | . . . Communications Jammed . | . . . Distress Signals . | . . . Times Spotted 26 | . 19 7 Peak Tracking Total 4 | . 4 4 Tactical Retreats 1 | . 1 . Traps | -11 -10 -10 ------- Run | Yrd Mat Min Traps Triggered . | . . . Indirectly . | . . . Trap Hack Attempts . | . . . Triggered . | . . . Disarmed . | . . . Reprogrammed . | . . . Reused . | . . . Traps Extracted . | . . . Installed . | . . . Triggered . | . . . Machines | -11 -10 -10 ---------- Run | Yrd Mat Min Machines Disabled 1 | . 1 . Max in Single Turn 1 | . 1 . Machines Repaired . | . . . Machines Dismantled . | . . . Machines Sabotaged . | . . . Overloaded Fab Kills . | . . . Hacking | -11 -10 -10 --------- Run | Yrd Mat Min Machines Accessed 2 | . 2 . Terminals 2 | . 2 . Fabricators . | . . . Repair Stations . | . . . Recycling Units . | . . . Scanalyzers . | . . . Garrison Access . | . . . Total Hacks 5 | . 5 . Successful 3 | . 3 . Failed 2 | . 2 . Catastrophic . | . . . Database Lockouts . | . . . Manual 4 | . 4 . Terminals 5 | . 5 . Fabricators . | . . . Repair Stations . | . . . Recycling Units . | . . . Scanalyzers . | . . . Garrison Access . | . . . Terminal Hacks 2 | . 2 . Robot Analysis 1 | . 1 . Locate Traps 1 | . 1 . Fabricator Hacks . | . . . Repair Station Hacks . | . . . Recycling Unit Hacks . | . . . Scanalyzer . | . . . Garrison Access Hacks . | . . . Unauthorized Hacks 1 | . 1 . Terminals 1 | . 1 . Botnet 1 | . 1 . Fabricators . | . . . Repair Stations . | . . . Recycling Units . | . . . Scanalyzers . | . . . Garrison Access . | . . . Data Cores Recovered . | . . . Used . | . . . Hacking Detections 2 | . 2 . Full Trace Events . | . . . Feedback Events . | . . . Feedback Blocked . | . . . Robot Schematics Acquired . | . . . Robots Built . | . . . Authchips . | . . . Time . | . . . Total Robot Build Rating . | . . . Part Schematics Acquired . | . . . Parts Built . | . . . Authchips . | . . . Time . | . . . Total Part Build Rating . | . . . Parts Repaired . | . . . Time . | . . . Parts Recycled . | . . . Recycled Matter . | . . . Retrieved Matter . | . . . Retrieved Components . | . . . Parts Scanalyzed . | . . . Part Schematics Acquired . | . . . Parts Damaged . | . . . Bothacking | -11 -10 -10 ------------ Run | Yrd Mat Min Used RIF Installer . | . . . Robots Hacked . | . . . Non-combat . | . . . Combat . | . . . Robot Hacks Applied . | . . . Relay Couplers Released . | . . . Fabnet Peak Effective % . | . . . Robots Rewired . | . . . Allies Hacked . | . . . Hacks Repelled . | . . . Allies | -11 -10 -10 -------- Run | Yrd Mat Min Total Allies . | . . . Largest Group . | . . . Highest-Rated Group . | . . . Highest-Rated Ally . | . . . Total Orders . | . . . Ally Attacks . | . . . Total Damage . | . . . Kills . | . . . Allies Corrupted . | . . . Allies Melted . | . . . Intel | -11 -10 -10 ------- Run | Yrd Mat Min Robot Analysis Total 1 | . 1 . Derelict Logs Recovered . | . . . Drone Launches . | . . . Drone Recoveries . | . . . Exploration | -11 -10 -10 ------------- Run | Yrd Mat Min Turns Passed 1581 | 183 731 667 Spaces Moved 586 | 126 251 209 Core 12 | 10 . 2 Treads 402 | . 195 207 Legs . | . . . Wheels 172 | 116 56 . Hover . | . . . Flight . | . . . Fastest Speed 50 | 50 100 240 Average Speed 214 | 96 213 288 Slowest Speed 800 | 100 320 800 Overloaded Moves . | . . . Propulsion Burnouts . | . . . Robots Hopped . | . . . Cave-ins Triggered . | . . . Exploration Rate (%) 31 | 4 43 48 Regions Visited 2 Branch Regions 1 Pre-discovered Areas . | . . . Known Exits Taken . | . . . Unknown Exits Taken 2 | 1 1 . Scrap Searched 2 | . . 2 Spaces Dug . | . . . Terrain Destroyed 6 | 2 4 . Melee . | . . . Projectile . | . . . AOE 6 | 2 4 . Terrain Rammed . | . . . Walls Destroyed . | . . . Machines Disabled . | . . . Actions | -11 -10 -10 --------- Run | Yrd Mat Min Total 747 | 161 344 242 Wait 19 | 5 14 . Move 584 | 125 250 209 Hop . | . . . Pick Up 30 | 10 14 6 Fast Attach . | . . . Attach 20 | 7 6 7 Detach 1 | . 1 . Swap 3 | 1 2 . Drop 4 | . 2 2 Fire 86 | 13 55 18 Melee . | . . . Ram . | . . . Kick . | . . . Crush . | . . . Escape Stasis . | . . . Rewire . | . . . Trap . | . . . Miscellaneous . | . . . Route ------- -11/Scrapyard -10/Materials -10/Mines History --------- Turn | Location | Event 14 | -11/Scrapyard | Discovered new exit (range 15) 184 | -11/Scrapyard | Entered Materials 302 | -10/Materials | Build established: Mutant 543 | -10/Materials | Discovered new exit (range 16) 915 | -10/Materials | Entered Mines 1129 | -10/Mines | Core integrity fell below 50% 1180 | -10/Mines | Lost 5 parts (1p2n1u1w) 1548 | -10/Mines | Core integrity fell below 20% 1582 | -10/Mines | Destroyed by G-47 Trooper with Particle Gun Last Messages --------------- 01412_ System corrupted: FCS attempts to trigger Sml. Laser. 01412_ System corrupted: Sml. Laser misfires. 01463_ T-07 Excavator is excavating. 01464_ System corrupted: Component data lost. 01494_ System corrupted: IFF burst signal emitted. 01535_ System corrupted: Component data lost. 01537_ G-47 Trooper: "SECOND INTRUDER APPROACHING. ELIMINATE." 01547_ Critical hit (Burn: +37). 01548_ G-34 Mercenary destroyed. 01557_ EB5PH9J,9V#TVEQRWNUOUPO#:UM7LPT%B9,O 01573_ Lgt. Treads destroyed. 01575_ G-34 Mercenary suffers critical hit (Destroy). 01575_ Destroyed Aluminum Leg. 01577_ G-34 Mercenary destroyed. 01577_ Switching to secondary target: G-47 Trooper. Map ----- +----------------------------------------------------+ | | | | | | | | | | | | | | | | | | | ????????????????????????????????????????????????? | | ????????????????????????????????????????????????? | | ????????????????????????????????????????????????? | | ????????????????????????????????????????????????? | | ????????????????????????????????????????????????? | | ????????????????????????????????????????????????? | | ????????????????????????????????????????????????? | | ????????????????????????####????????????????????? | | ???????????????????????? #???#######??????????? | | ????????????????????????#t #??# ??????????? | | ?#??????????????????????# #?# ???????????? | | # ??????????????????????# ## #????????????? | | ??????????????????????# # #?????????????? | | ??????????????????????# #?????????????? | | ??????????????????????# ##????????????? | | #??????????????????????# #????????????? | | #??????????????????????#@ #???????????? | | #?????????????????????## ### #??????????? | | #?????????????????????#!* ##??????????????????? | | #????????????????????##%= ##?????????????????? | | #???????????????????## g #?????????????????? | | %#??????### ######### #?????????????????? | | #??# % #?????????????????? | | #####??"""* ## #?????????????????? | | #??""" ####### #### ##???#####????????? | | ### #??"?????????## #??# ##### ##???????? | | #???????????????## ##??# ## ##??????? | | #??????????????## ###???# ##?????? | | ##????????????## ##?????# ##????? | | ###?????????## ##??????# #????? | | #?????????# #??????## ## #????? | | #?????????# #??????# ##?# ##????? | | ##?????????## ??????# ##???####?????? | | ##???????????# ##???# ##?????????????? | | #???????????? ##??# ##??????????????? | | #??????????? #??# ##???###?????????? | | ########### #??# ##### ##????????? | | #???# #????????? | | #####???# #????????? | | ######## ## #???????## ##### #????????? | | ???????# # ### ?????????######## #????????? | +----------------------------------------------------+ Best States ------------- Heat Dissipation 25 Energy Generation 14 Energy Capacity 250 Matter Stores 300 Matter Capacity 300 Sight Range 16 Terrain Scan Range 16 Terrain Scan Density 10 Evasion (%) 40 Recoil Reduction 2 Item Schematics ----------------- None Robot Schematics ------------------ None Fabricated ------------ Nothing Alien Tech Used ----------------- None Achievements -------------- None Challenges ------------ None Game ------ Seed AssemblyHypervelocityEngine Manual? 0 Play Time 00:12:12 Cumulative 138.0 hours Start 2024.06.05 @ 01:56:09 End 2024.06.05 @ 02:06:32 Sessions 1 Manual Loads 0 Difficulty Rogue Special Mode None Game No. 115 Rogue 110 Adventurer 5 Explorer 0 Win Type - Total 3 Types 2/0/1/0/0/0/0/0/0 Lore% 61 Gallery% 72 Achievement% 51 Wizard Run 0 Options --------- Layout 2 ASCII 0 Keyboard 0 Movement Mouse Keybinds 0 Fullscreen 2 Font 24/Smallcaps Map View 50x44 Zoom Use 0% Tactical HUD 1 Map Filters NONE Filters NONE Steam 1 RUN: 2cfa25c4-29f2-49ca-8970-324694a2fa31